bitfinex/quotes_ETHUSD_20250504
["timestamp","ask_amount","ask_price","bid_price","bid_amount"]
[1746391313462,5.42986425,1841.7,1841.3,5.4308298]
[1746391313762,0.30532967,1841.6,1841.4,4.604]
[1746391313941,0.5088829,1841.5,1841.4,4.604]
[1746391314364,0.81421257,1841.5,1841.4,4.604]
[1746391322692,0.81421257,1841.5,1841.4,6.46647439]
[1746391323690,0.81421257,1841.5,1841.4,4.604]
[1746391327769,6.24456825,1841.5,1841.4,4.604]
[1746391327966,1.44279939,1841.5,1841.4,4.604]
[1746391328184,6.91445507,1841.5,1841.4,4.604]
[1746391328488,1.48409939,1841.5,1841.4,4.604]
[1746391329694,7.62409939,1841.5,1841.4,4.604]
[1746391331886,13.05445507,1841.5,1841.4,4.604]
[1746391332101,13.05445507,1841.5,1841.1,5.43136784]
[1746391332283,8.47431097,1840.6,1840.5,3.62637458]
[1746391332596,10.33678536,1840.6,1840.5,3.62637458]
[1746391332906,9.28852354,1840.6,1840.5,3.62637458]
[1746391333196,10.76065555,1840.6,1840.5,3.62637458]
[1746391333393,10.45500472,1840.6,1840.5,3.62637458]
[1746391333602,10.76014185,1840.6,1840.5,3.62637458]
[1746391333797,11.26870609,1840.6,1840.5,3.62637458]
[1746391333998,11.26870509,1840.6,1840.5,3.62637458]
[1746391334164,10.76014335,1840.6,1840.5,3.62637458]
[1746391334364,11.26868625,1840.6,1840.5,3.62637458]
[1746391334601,10.76008855,1840.6,1840.5,3.62637458]
[1746391334785,11.66952268,1840.6,1840.5,3.62637458]
[1746391335380,11.66946289,1840.6,1840.5,3.62637458]
[1746391337018,5.43360139,1840.4,1840.3,4.604]
[1746391337231,5.73869609,1840.4,1840.3,4.604]
[1746391337530,12.38718726,1840.4,1840.3,4.604]
[1746391338086,12.8957158,1840.4,1840.3,4.604]
[1746391339317,12.8957158,1840.4,1840.3,4.71023341]
[1746391340185,14.8453207,1840.4,1840.3,4.71023341]
[1746391340616,14.8453207,1840.4,1840.3,4.604]
[1746391342842,14.8866207,1840.4,1840.3,4.604]
[1746391352158,0.0413,1839.9,1839.6,1e-08]
[1746391352372,0.0413,1839.1,1838.9,0.28438071]
[1746391352672,9.78518406,1839.7,1839.0,0.10805813]
[1746391352673,0.0413,1839.3,1839.0,0.10805813]
[1746391352847,5.43697191,1839.3,1838.9,5.4109]
[1746391353167,3.0413,1839.5,1839.0,0.10805813]
[1746391353168,5.43744222,1839.1,1839.0,0.10805813]
[1746391353385,5.43732297,1839.2,1839.0,0.10805813]
[1746391353584,5.43744222,1839.1,1839.0,0.10805813]
[1746391355635,5.43729218,1839.2,1839.0,0.10805813]
[1746391357277,5.4369621,1839.3,1839.0,0.10805813]
[1746391358375,5.437151,1839.2,1839.0,0.10805813]
[1746391360513,0.50614548,1839.1,1839.0,0.10805813]
[1746391366219,1.01294659,1839.1,1839.0,0.10805813]
[1746391371736,1.01402731,1839.1,1839.0,0.10805813]
[1746391372793,7.09658907,1839.1,1839.0,0.10805813]
[1746391373007,7.40102121,1839.1,1839.0,0.10805813]
[1746391373629,13.54102121,1839.1,1839.0,0.10805813]
[1746391374124,8.10357899,1839.1,1839.0,0.10805813]
[1746391374725,7.45845945,1839.1,1839.0,0.10805813]
[1746391375134,7.45845945,1839.1,1839.0,0.92905813]
[1746391375438,7.15402731,1839.1,1839.0,0.92905813]
[1746391375733,7.15402731,1839.1,1839.0,0.10805813]
[1746391376635,7.45878837,1839.1,1839.0,0.10805813]
[1746391383843,14.18582867,1839.1,1839.0,0.10805813]
[1746391386415,14.22712867,1839.1,1839.0,0.10805813]
[1746391390049,8.78968645,1839.1,1839.0,0.10805813]
[1746391390284,7.45878837,1839.1,1839.0,0.10805813]
[1746391390930,12.89623059,1839.1,1839.0,0.10805813]
[1746391391123,7.45878837,1839.1,1839.0,0.10805813]
[1746391393373,7.45878837,1839.1,1839.0,4.75705813]
[1746391394169,1.31878837,1839.1,1839.0,4.75705813]
[1746391394380,1.31878837,1839.1,1839.0,10.19479603]
[1746391394534,1.31878837,1839.1,1839.0,5.52275813]
[1746391394870,1.01402731,1839.1,1839.0,12.74123791]
[1746391401393,1.01402731,1839.1,1839.0,16.29123791]
[1746391401734,6.14,1839.4,1839.3,6.21765097]
[1746391401936,9.79627509,1839.7,1839.4,5.4364711]
[1746391402137,9.79627509,1839.7,1839.5,4.609]
[1746391402435,9.79627509,1839.7,1839.6,0.12487484]
[1746391402758,10.81457101,1839.7,1839.6,0.12487484]
[1746391403135,11.12005507,1839.7,1839.6,0.12487484]
[1746391403673,11.12005507,1839.7,1839.6,5.56083918]
[1746391404174,11.12005507,1839.7,1839.6,6.34163918]
[1746391404372,11.12005507,1839.7,1839.6,0.12487484]
[1746391404749,11.12005507,1839.7,1839.6,5.56083918]
[1746391406400,11.12005507,1839.7,1839.6,7.33891173]
[1746391406778,10.81457101,1839.7,1839.6,7.33891173]
[1746391406982,7.15829592,1839.7,1839.6,7.33891173]
[1746391407182,7.15755485,1839.7,1839.6,7.33891173]
[1746391408371,6.64915006,1839.7,1839.6,7.33891173]
[1746391408904,0.50915006,1839.7,1839.6,7.33891173]
[1746391410204,1.01715431,1839.7,1839.6,0.12487484]
[1746391411084,1.01715431,1839.7,1839.6,5.56083918]
[1746391414408,0.50915006,1839.7,1839.6,5.56083918]
[1746391415200,0.50915006,1839.7,1839.6,0.12487484]
[1746391415518,0.50915006,1839.7,1839.6,5.56083918]
[1746391416405,0.50915006,1839.7,1839.6,0.12487484]
[1746391416606,1.01704228,1839.7,1839.6,0.12487484]
[1746391418711,1.01704228,1839.7,1839.6,5.56083918]
[1746391419716,1.32204008,1839.7,1839.6,0.12487484]
[1746391424323,1.32204008,1839.7,1839.6,4.73287484]
[1746391426121,1.32204008,1839.7,1839.6,10.16883918]
[1746391428820,1.32204008,1839.7,1839.6,4.73287484]
[1746391429932,1.32204008,1839.7,1839.6,10.16883918]
[1746391431731,1.32204008,1839.7,1839.6,4.73287484]
[1746391432829,1.32204008,1839.7,1839.6,10.16883918]
[1746391435333,1.32204008,1839.7,1839.6,12.74370117]
[1746391440108,1.32204008,1839.7,1839.6,5.52977484]
[1746391440307,1.32204008,1839.7,1839.6,4.73287484]
[1746391440504,1.32204008,1839.7,1839.6,4.608]
[1746391442445,1.32204008,1839.7,1839.6,10.04396434]
[1746391444449,1.32204008,1839.7,1839.6,5.43596434]
[1746391444739,1.32204008,1839.7,1839.6,13.78079043]
[1746391444951,1.32204008,1839.7,1839.6,11.6060362]
[1746391445250,1.01704228,1839.7,1839.6,11.6060362]
[1746391445805,1.01704228,1839.7,1839.6,13.78079043]
[1746391446542,1.01704228,1839.7,1839.6,11.6060362]
[1746391447950,0.50915006,1839.7,1839.6,11.6060362]
[1746391449346,0.81496992,1839.7,1839.6,11.6060362]
[1746391449645,1.32467015,1839.7,1839.6,11.6060362]
[1746391450046,1.01885029,1839.7,1839.6,11.6060362]
[1746391451942,1.3246832,1839.7,1839.6,11.6060362]
[1746391454913,1.3246832,1839.7,1839.6,10.84496434]
[1746391456021,1.3246832,1839.7,1839.6,4.603]
[1746391458232,1.32536773,1839.7,1839.6,4.603]
[1746391459857,1.01953482,1839.7,1839.6,4.603]
[1746391460021,1.32543608,1839.7,1839.6,4.603]
[1746391461582,1.01953482,1839.7,1839.6,4.603]
[1746391461772,1.32543961,1839.7,1839.6,4.603]
[1746391462229,1.32543961,1839.7,1839.6,10.03896434]
[1746391468865,1.32543961,1839.7,1839.6,12.47333994]
[1746391469734,1.01953482,1839.7,1839.6,12.47333994]
[1746391472783,1.01953482,1839.7,1839.6,10.83116434]
[1746391472944,1.01953482,1839.7,1839.6,10.03896434]
[1746391473140,1.32546734,1839.7,1839.6,10.03896434]
[1746391482601,1.32546734,1839.7,1839.6,4.603]
[1746391483586,1.32546734,1839.7,1839.6,10.03896434]
[1746391483779,1.32546734,1839.7,1839.6,11.80396023]
[1746391493208,1.32546734,1839.7,1839.6,12.56516023]
[1746391497741,1.32546734,1839.7,1839.6,16.29400419]
[1746391499637,1.22546734,1839.7,1839.6,16.29400419]
[1746391500500,1.22546734,1839.7,1839.6,15.53280419]
[1746391501930,1.22546734,1839.7,1839.6,13.66838221]
[1746391502837,0.81576711,1839.7,1839.6,13.66838221]
[1746391503632,0.81576711,1839.7,1839.6,11.90338632]
[1746391503936,0.81576711,1839.7,1839.6,6.46742198]
[1746391505138,0.81576711,1839.7,1839.6,11.90338632]
[1746391505925,0.81576711,1839.7,1839.6,12.69578632]
[1746391507833,0.81576711,1839.7,1839.6,13.00661463]
[1746391508026,0.81576711,1839.7,1839.6,14.85087856]
[1746391508631,0.81595149,1839.7,1839.6,14.85087856]
[1746391509943,0.81631313,1839.7,1839.6,14.85087856]
[1746391510348,0.81631313,1839.7,1839.6,12.21421463]
[1746391512048,1.32653133,1839.7,1839.6,12.21421463]
[1746391514651,1.32653133,1839.7,1839.6,12.61421463]
[1746391518046,1.32653133,1839.7,1839.6,13.38831463]
[1746391521116,1.02041391,1839.7,1839.6,13.38831463]
[1746391521316,1.02041391,1839.7,1839.6,15.27074856]
[1746391526054,1.32641691,1839.7,1839.6,15.27074856]
[1746391528257,1.02041391,1839.7,1839.6,15.27074856]
[1746391529956,1.02041391,1839.7,1839.6,14.95998816]
[1746391530754,1.02041391,1839.7,1839.6,14.18588816]
[1746391531667,1.326412,1839.7,1839.6,14.18588816]
[1746391532270,1.02041391,1839.7,1839.6,14.18588816]
[1746391535835,1.02041391,1839.7,1839.6,15.01158816]
[1746391537162,1.02041391,1839.7,1839.6,19.87607805]
[1746391538163,0.51019571,1839.7,1839.6,19.87607805]
[1746391552475,0.51019571,1839.7,1839.6,20.28396239]
[1746391554395,0.51019571,1839.7,1839.6,20.83396239]
[1746391554862,6.1813,1840.1,1840.0,5.4347826]
[1746391555062,0.0413,1840.1,1840.0,12.28527249]
[1746391555398,0.55128448,1840.1,1840.0,12.28527249]
[1746391555594,1.06123736,1840.1,1840.0,12.28527249]
[1746391555900,1.36720941,1840.1,1840.0,12.28527249]
[1746391556098,1.36720941,1840.1,1840.0,6.85048989]
[1746391556598,1.36720941,1840.1,1840.0,4.986]
[1746391558069,1.36720941,1840.1,1840.0,0.4]
[1746391558269,1.36720941,1840.1,1840.0,4.986]
[1746391561204,0.85722493,1840.1,1840.0,4.986]
[1746391561404,1.36716667,1840.1,1840.0,4.986]
[1746391562902,1.36716667,1840.1,1840.0,10.4207826]
[1746391563702,1.32586667,1840.1,1840.0,10.4207826]
[1746391564000,1.32586667,1840.1,1840.0,12.28527249]
[1746391564201,1.32586667,1840.1,1840.0,14.05728466]
[1746391568404,1.01989462,1840.1,1840.0,14.05728466]
[1746391569877,1.32568914,1840.1,1840.0,14.05728466]
[1746391577126,0.74961958,1840.1,1840.0,14.05728466]
[1746391597383,0.74961958,1840.1,1840.0,18.43198466]
[1746391597673,0.30579452,1840.1,1840.0,20.29647455]
[1746391597879,3.65627509,1840.6,1840.5,5.43330616]
[1746391598047,3.65627509,1840.6,1840.5,12.27779605]
[1746391598247,4.16606775,1840.6,1840.5,12.27779605]
[1746391598858,4.47178317,1840.6,1840.5,12.27779605]
[1746391600178,4.47178317,1840.6,1840.5,12.22779605]
[1746391601749,4.16606775,1840.6,1840.5,12.22779605]
[1746391602048,0.50979266,1840.6,1840.5,12.22779605]
[1746391602748,0.50979266,1840.6,1840.5,12.63999432]
[1746391620818,0.50979266,1840.6,1840.5,10.77550443]
[1746391621043,0.50979266,1840.6,1840.5,12.63999432]
[1746391624122,0.81530032,1840.6,1840.5,12.63999432]
[1746391627323,0.81530032,1840.6,1840.5,14.44735009]
[1746391630428,0.81530032,1840.6,1840.5,12.5828602]
[1746391630667,0.81530032,1840.6,1840.5,15.24055009]
[1746391637124,0.81572709,1840.6,1840.5,15.24055009]
[1746391637451,0.30593443,1840.6,1840.5,15.24055009]
[1746391637625,0.81582515,1840.6,1840.5,15.24055009]
[1746391638653,0.85712515,1840.6,1840.5,7.25668816]
[1746391638954,0.85715523,1840.6,1840.5,5.39219827]
[1746391639458,0.85715523,1840.6,1840.5,12.68999432]
[1746391640637,0.81585523,1840.6,1840.5,12.68999432]
[1746391645262,6.2901662,1840.6,1840.5,4.98]
[1746391645432,7.46247164,1840.6,1840.5,4.98]
[1746391645652,7.46245244,1840.6,1840.5,4.98]
[1746391646081,7.4623927,1840.6,1840.5,4.98]
[1746391646584,2.02938157,1840.6,1840.5,4.98]
[1746391646888,0.85707613,1840.6,1840.5,4.98]
[1746391647642,0.34721523,1840.6,1840.5,6.84448989]
[1746391647841,0.85693407,1840.6,1840.5,6.84448989]
[1746391648478,0.85693407,1840.6,1840.5,4.98]
[1746391649161,0.34721523,1840.6,1840.5,4.98]
[1746391649370,0.85693545,1840.6,1840.5,4.98]
[1746391650192,0.85679429,1840.6,1840.5,4.98]
[1746391651380,0.85658632,1840.6,1840.5,4.98]
[1746391656197,0.81493202,1840.6,1840.5,4.98]
[1746391662493,0.81493202,1840.6,1840.5,6.84448989]
[1746391662698,0.81493202,1840.6,1840.5,8.19502287]
[1746391663092,0.81493202,1840.6,1840.5,13.62832903]
[1746391663405,0.81493202,1840.6,1840.5,14.43912903]
[1746391663609,3.65627509,1840.9,1840.8,8.98242068]
[1746391663813,3.65627509,1840.9,1840.8,11.71202715]
[1746391663971,3.65627509,1840.9,1840.8,12.05771057]
[1746391664179,8.64504527,1841.4,1841.3,5.43094552]
[1746391664482,8.64504527,1841.4,1841.3,13.07323541]
[1746391665786,8.64504527,1841.4,1841.3,13.38005055]
[1746391668111,8.64504527,1841.4,1841.3,13.79498757]
[1746391669326,5.8854104,1841.7,1841.3,15.48265749]
[1746391669327,0.0413,1841.7,1841.3,15.48265749]
[1746391669885,0.0413,1841.7,1841.4,0.4]
[1746391670281,0.0413,1841.7,1841.4,5.83063341]
[1746391671220,0.0413,1841.7,1841.4,0.4]
[1746391671434,5.47108302,1841.7,1841.4,0.4]
[1746391675698,5.47108302,1841.7,1841.5,0.4]
[1746391681035,5.47108302,1841.7,1841.6,4.56]
[1746391681329,5.97701604,1841.7,1841.6,4.56]
[1746391681735,0.50593302,1841.7,1841.6,4.96]
[1746391683035,5.93569899,1841.7,1841.6,4.96]
[1746391684129,0.50593302,1841.7,1841.6,4.96]
[1746391684315,0.50610551,1841.7,1841.6,4.96]
[1746391685741,5.93587148,1841.7,1841.6,4.96]
[1746391688040,6.23991081,1841.7,1841.6,4.96]
[1746391695241,0.81014484,1841.7,1841.6,4.96]
[1746391701560,6.23991081,1841.7,1841.6,4.96]
[1746391702844,9.92340404,1841.7,1841.6,4.96]
[1746391703027,8.0621683,1841.7,1841.6,4.96]
[1746391704727,6.23991081,1841.7,1841.6,4.96]
[1746391704922,0.81014484,1841.7,1841.6,4.96]
[1746391705858,6.23991081,1841.7,1841.6,4.96]
[1746391706636,6.23044447,1841.7,1841.6,4.96]
[1746391707764,0.8006785,1841.7,1841.6,4.96]
[1746391708374,6.23044447,1841.7,1841.6,4.96]
[1746391708873,0.8006785,1841.7,1841.6,4.96]
[1746391710236,0.8006785,1841.7,1841.6,6.76853537]
[1746391711833,0.8006785,1841.7,1841.6,5.99903537]
[1746391712034,0.8006785,1841.7,1841.6,4.96]
[1746391714377,0.8006785,1841.7,1841.6,10.39006081]
[1746391714574,0.8006785,1841.7,1841.6,13.42133867]
[1746391714781,0.8006785,1841.7,1841.6,13.36704453]
[1746391719586,0.8006785,1841.7,1841.6,13.91704453]
[1746391719747,0.8006785,1841.7,1841.6,15.85177142]
[1746391721789,0.49663917,1841.7,1841.6,15.85177142]
[1746391726479,0.49663917,1841.7,1841.6,15.30177142]
[1746391728646,0.49663917,1841.7,1841.6,14.49687142]
[1746391729372,0.80181485,1841.7,1841.6,14.49687142]
[1746391734585,0.80181485,1841.7,1841.6,9.06681061]
[1746391734793,0.80181485,1841.7,1841.6,6.89472689]
[1746391735300,0.80181485,1841.7,1841.6,4.96]
[1746391742405,6.27288082,1841.7,1841.6,4.96]
[1746391757411,0.80181485,1841.7,1841.6,4.96]
[1746391758207,6.23158082,1841.7,1841.6,4.96]
[1746391760788,0.80181485,1841.7,1841.6,4.96]
[1746391765115,6.23158082,1841.7,1841.6,4.96]
[1746391766299,0.80181485,1841.7,1841.6,4.96]
[1746391771426,0.80181485,1841.7,1841.6,5.7771]
[1746391771637,0.80181485,1841.7,1841.6,7.08396479]
[1746391771800,0.80181485,1841.7,1841.6,14.37521835]
[1746391772326,0.81471349,1841.7,1841.6,14.37521835]
[1746391775432,0.41471349,1841.7,1841.6,13.97521835]
[1746391785658,6.14,1842.1,1841.7,5.42955063]
[1746391785862,5.46969185,1842.2,1841.8,0.54295506]
[1746391785863,17.03826227,1842.2,1841.8,0.54295506]
[1746391786230,5.42862165,1842.1,1841.8,0.54295506]
[1746391786435,5.42862165,1842.1,1841.8,0.94518294]
[1746391787660,0.50867286,1842.0,1841.8,0.94518294]
[1746391788158,0.30520436,1841.9,1841.8,0.94518294]
[1746391788358,0.81387822,1841.9,1841.8,0.94518294]
[1746391788561,0.81387822,1841.9,1841.8,6.3746541]
[1746391789667,0.81387822,1841.9,1841.8,8.99844685]
[1746391790167,0.50867386,1841.9,1841.8,7.1372541]
[1746391794868,0.81388186,1841.9,1841.8,7.1372541]
[1746391796978,0.81388186,1841.9,1841.8,11.6802541]
[1746391798372,0.81405614,1841.9,1841.8,11.6802541]
[1746391814207,0.81405614,1841.9,1841.8,14.09144685]
[1746391815116,0.50884814,1841.9,1841.8,14.09144685]
[1746391818941,0.81451191,1841.9,1841.8,14.09144685]
[1746391826510,0.81516235,1841.9,1841.8,14.09144685]
[1746391829557,0.81516235,1841.9,1841.8,13.32884685]
[1746391831544,0.81516235,1841.9,1841.8,13.53675023]
[1746391840354,0.50949858,1841.9,1841.8,13.53675023]
[1746391841867,0.0413,1842.1,1842.0,5.42888165]
[1746391842257,0.0413,1842.1,1842.0,5.6186691]
[1746391842566,0.85666318,1842.1,1842.0,5.6186691]
[1746391842866,0.85666318,1842.1,1842.0,10.1516691]
[1746391844562,0.81536318,1842.1,1842.0,11.89586162]
[1746391847359,0.81536318,1842.1,1842.0,10.1516691]
[1746391851671,0.85666318,1842.1,1842.0,4.72278745]
[1746391853054,6.28525011,1842.1,1842.0,4.72278745]
[1746391853644,0.85666318,1842.1,1842.0,4.72278745]
[1746391854655,6.28525011,1842.1,1842.0,4.72278745]
[1746391854971,7.45660849,1842.1,1842.0,4.72278745]
[1746391857692,13.59660849,1842.1,1842.0,4.72278745]
[1746391860286,15.45780124,1842.1,1842.0,4.72278745]
[1746391862888,13.59660849,1842.1,1842.0,4.72278745]
[1746391864162,13.59660849,1842.1,1842.0,4.533]
[1746391864397,13.59660849,1842.1,1842.0,4.72499054]
[1746391864698,20.18886251,1842.1,1842.0,4.72499054]
[1746391871111,22.05005526,1842.1,1842.0,4.72499054]
[1746391871479,22.05005526,1842.1,1842.0,4.533]
[1746391873308,15.45780124,1842.1,1842.0,4.533]
[1746391873608,15.45780124,1842.1,1842.0,4.72887974]
[1746391875391,13.59660849,1842.1,1842.0,4.72887974]
[1746391879221,13.59660849,1842.1,1842.0,4.533]
[1746391882627,5.42980732,1841.7,1841.5,2.63439275]
[1746391882923,5.42980732,1841.7,1841.6,4.72495849]
[1746391883090,5.7355689,1841.7,1841.6,5.27477434]
[1746391883503,6.24450028,1841.7,1841.6,5.27477434]
[1746391885221,0.81469296,1841.7,1841.6,5.27477434]
[1746391885931,6.24445893,1841.7,1841.6,5.27477434]
[1746391888422,6.24445893,1841.7,1841.6,4.72495849]
[1746391889035,14.28695168,1841.7,1841.6,4.72495849]
[1746391892820,17.24565168,1841.7,1841.6,4.72495849]
[1746391893035,17.28695168,1841.7,1841.6,4.72495849]
[1746391893901,17.28695168,1841.7,1841.6,4.529]
[1746391894100,19.55861201,1841.7,1841.6,4.529]
[1746391898441,26.1434465,1841.7,1841.6,4.529]
[1746391905456,22.47500328,1841.7,1841.6,4.529]
[1746391912285,22.47500328,1841.7,1841.6,4.70160865]
[1746391912751,22.47500328,1841.7,1841.6,0.17260865]
[1746391913157,5.43035568,1841.5,1841.4,4.525]
[1746391913657,5.93928706,1841.5,1841.4,4.525]
[1746391913828,6.24504864,1841.5,1841.4,4.525]
[1746391914265,6.24504864,1841.5,1841.4,4.69760865]
[1746391916274,12.38504864,1841.5,1841.4,4.69760865]
[1746391917570,12.38504864,1841.5,1841.4,0.17260865]
[1746391917874,5.43065059,1841.4,1841.3,5.2866]
[1746391918078,5.43065059,1841.4,1841.3,5.45905148]
[1746391918262,5.73641217,1841.4,1841.3,5.45905148]
[1746391918567,6.24534355,1841.4,1841.3,5.45905148]
[1746391922189,12.38534355,1841.4,1841.3,5.45905148]
[1746391938531,18.96812879,1841.4,1841.3,5.45905148]
[1746391939420,18.45919741,1841.4,1841.3,5.45905148]
[1746391939726,18.96927991,1841.4,1841.3,5.45905148]
[1746391940431,18.96927709,1841.4,1841.3,5.45905148]
[1746391943329,15.31217981,1841.4,1841.3,5.45905148]
[1746391949636,15.31214729,1841.4,1841.3,5.45905148]
[1746391951206,15.31214729,1841.4,1841.3,4.69745148]
[1746391965333,9.8814967,1841.4,1841.3,4.69745148]
[1746391965526,9.8814967,1841.4,1841.3,5.93299663]
[1746391966617,9.8814967,1841.4,1841.3,5.46325148]
[1746391968318,15.31214729,1841.4,1841.3,5.46325148]
[1746391970881,9.8814967,1841.4,1841.3,5.46325148]
[1746391971963,6.95580874,1841.4,1841.3,5.46325148]
[1746391977891,6.9551052,1841.4,1841.3,5.46325148]
[1746392002764,6.9551052,1841.4,1841.3,4.69745148]
[1746392002765,12.38575579,1841.4,1841.3,4.69745148]
[1746392002969,14.21279699,1841.4,1841.3,0.17245148]
[1746392003131,5.43153549,1841.1,1841.0,4.511]
[1746392003332,5.73729707,1841.1,1841.0,4.66932672]
[1746392003538,6.24664069,1841.1,1841.0,4.66932672]
[1746392004260,0.8151052,1841.1,1841.0,4.66932672]
[1746392004965,6.24664069,1841.1,1841.0,4.66932672]
[1746392009238,8.03255965,1841.1,1841.0,4.66932672]
[1746392009940,7.72679807,1841.1,1841.0,4.66932672]
[1746392010143,8.03228749,1841.1,1841.0,4.66932672]
[1746392011383,6.24636853,1841.1,1841.0,4.66932672]
[1746392013069,12.38636853,1841.1,1841.0,4.66932672]
[1746392016301,12.42766853,1841.1,1841.0,4.66932672]
[1746392036124,12.42766853,1841.1,1841.0,0.15832672]
[1746392048559,12.38636853,1841.1,1841.0,0.15832672]
[1746392048847,14.16813027,1841.1,1841.0,0.15832672]
[1746392050718,20.76218659,1841.1,1841.0,0.15832672]
[1746392052258,18.98042485,1841.1,1841.0,0.15832672]
[1746392063654,20.8829176,1841.1,1841.0,0.15832672]
[1746392063853,8.43183052,1841.0,1840.9,4.508]
[1746392064159,10.8030126,1841.0,1840.9,4.65227797]
[1746392064457,11.10901633,1841.0,1840.9,4.65227797]
[1746392064615,14.31798337,1841.0,1840.9,4.65227797]
[1746392067653,14.31798337,1841.0,1840.9,4.508]
[1746392068779,20.45798337,1841.0,1840.9,4.508]
[1746392069063,23.38141413,1841.0,1840.9,4.508]
[1746392070075,23.42271413,1841.0,1840.9,4.508]
[1746392072371,5.43301097,1840.6,1840.5,0.7865]
[1746392072592,5.43301097,1840.6,1840.5,5.2905]
[1746392072886,12.38901827,1840.6,1840.5,5.43697779]
[1746392073586,12.38901827,1840.6,1840.5,4.65047779]
[1746392076069,14.25021102,1840.6,1840.5,4.65047779]
[1746392078013,12.38901827,1840.6,1840.5,4.65047779]
[1746392078420,14.35732217,1840.6,1840.5,4.65047779]
[1746392082508,19.25981492,1840.6,1840.5,0.14647779]
[1746392082708,5.43419193,1840.2,1840.1,17.962]
[1746392083010,5.43448725,1840.1,1840.0,4.501]
[1746392083176,8.59047941,1840.1,1840.0,4.501]
[1746392083809,15.24048298,1840.1,1840.0,4.501]
[1746392085810,15.55559477,1840.1,1840.0,4.501]
[1746392086617,5.9847826,1840.0,1839.3,1e-08]
[1746392086909,10.61285993,1839.4,1839.3,1e-08]
[1746392087289,9.25256269,1839.4,1839.3,1e-08]
[1746392087720,9.25064868,1839.4,1839.3,1e-08]
[1746392088034,6.24955498,1839.4,1839.3,0.12905055]
[1746392088206,0.81294389,1839.4,1839.3,0.93565055]
[1746392088410,0.81294389,1839.4,1839.3,5.43665055]
[1746392088802,1.01573653,1839.4,1839.3,5.43665055]
[1746392092014,0.50764697,1839.4,1839.3,5.43665055]
[1746392093733,6.14,1839.5,1839.3,5.43665055]
[1746392094838,11.57628582,1839.5,1839.3,5.43665055]
[1746392096130,6.14,1839.5,1839.3,5.43665055]
[1746392096344,11.57632559,1839.5,1839.3,5.43665055]
[1746392096950,0.50687782,1839.4,1839.3,5.43665055]
[1746392097443,11.57632559,1839.5,1839.3,5.43665055]
[1746392097810,6.14,1839.5,1839.3,5.43665055]
[1746392098151,5.4363039,1839.5,1839.3,5.43665055]
[1746392098446,5.43626626,1839.5,1839.3,5.43665055]
[1746392099111,6.14,1839.6,1839.3,5.43665055]
[1746392099640,0.50700028,1839.5,1839.3,5.43665055]
[1746392100742,11.57601393,1839.6,1839.3,5.43665055]
[1746392101047,0.50706998,1839.5,1839.3,5.43665055]
[1746392101229,0.50706998,1839.5,1839.3,11.9607211]
[1746392101428,6.14,1839.6,1839.3,11.9607211]
[1746392101636,6.14,1839.6,1839.3,11.96081834]
[1746392101822,6.14,1839.6,1839.3,6.52400728]
[1746392102043,6.14,1839.6,1839.3,11.96073528]
[1746392102233,0.50718996,1839.5,1839.3,11.96073528]
[1746392102433,0.50718996,1839.5,1839.3,6.52400728]
[1746392102745,6.14,1839.6,1839.3,11.96085415]
[1746392103640,0.50747941,1839.5,1839.3,11.96085415]
[1746392103854,0.50747941,1839.5,1839.3,6.52400728]
[1746392104046,0.50747941,1839.5,1839.3,11.96078238]
[1746392104748,0.50747941,1839.4,1839.3,2.02300728]
[1746392104950,0.50747941,1839.4,1839.3,11.96285825]
[1746392105541,0.50747941,1839.5,1839.3,6.52600728]
[1746392106956,1.01541799,1839.4,1839.3,11.96273211]
[1746392107156,1.01541799,1839.4,1839.3,10.87537538]
[1746392107353,0.50747941,1839.4,1839.3,10.87537538]
[1746392107753,0.50747941,1839.4,1839.3,5.43865055]
[1746392107960,0.50747941,1839.4,1839.3,10.87550152]
[1746392108434,1.01554134,1839.4,1839.3,10.87550152]
[1746392111173,1.01554134,1839.4,1839.3,12.03652916]
[1746392111868,1.01554134,1839.4,1839.3,10.09512939]
[1746392113183,1.32130354,1839.4,1839.3,10.09512939]
[1746392114280,13.69595893,1839.4,1839.3,0.12253787]
[1746392114580,13.69595893,1839.4,1839.1,5.43740624]
[1746392114581,7.46130354,1839.4,1839.1,5.43740624]
[1746392114787,7.46130354,1839.4,1839.3,0.11179837]
[1746392114987,7.46130354,1839.4,1839.3,4.502]
[1746392115145,7.46130354,1839.4,1839.3,4.61379837]
[1746392115562,12.89785893,1839.4,1839.3,4.61379837]
[1746392116877,7.46130354,1839.4,1839.3,4.61379837]
[1746392118803,1.32130354,1839.4,1839.3,4.61379837]
[1746392120570,1.32130354,1839.4,1839.3,5.15561821]
[1746392120886,1.32130354,1839.4,1839.3,10.59246918]
[1746392121683,1.32130354,1839.4,1839.3,5.15561821]
[1746392126173,1.32130354,1839.4,1839.3,10.59246918]
[1746392126356,1.32130354,1839.4,1839.3,5.15561821]
[1746392126897,1.32372627,1839.4,1839.3,5.15561821]
[1746392127493,1.32372627,1839.4,1839.3,10.59246918]
[1746392128301,1.32372627,1839.4,1839.3,11.40516918]
[1746392133360,1.32372627,1839.4,1839.3,13.58147372]
[1746392136092,1.01796407,1839.4,1839.3,13.58147372]
[1746392140500,1.01796407,1839.4,1839.3,11.40516918]
[1746392140804,1.01796407,1839.4,1839.3,10.86334934]
[1746392141263,1.32374223,1839.4,1839.3,10.86334934]
[1746392141809,1.32374223,1839.4,1839.3,13.03965388]
[1746392142161,1.01796407,1839.4,1839.3,13.03965388]
[1746392144400,1.01796407,1839.4,1839.3,10.86334934]
[1746392145180,1.32381651,1839.4,1839.3,10.86334934]
[1746392148933,0.81391437,1839.4,1839.3,10.86334934]
[1746392149126,1.32385591,1839.4,1839.3,10.86334934]
[1746392150632,1.32385591,1839.4,1839.3,10.05064934]
[1746392154147,1.32406567,1839.4,1839.3,10.05064934]
[1746392154639,1.32613033,1839.4,1839.3,10.05064934]
[1746392165442,0.81600374,1839.4,1839.3,10.05064934]
[1746392165647,1.32627387,1839.4,1839.3,10.05064934]
[1746392165873,1.32627387,1839.4,1839.3,11.91615045]
[1746392175589,1.32627387,1839.4,1839.3,10.05064934]
[1746392175885,2.07727387,1839.4,1839.3,4.61379837]
[1746392176052,2.07764933,1839.4,1839.3,11.91615045]
[1746392176253,1.32627387,1839.4,1839.3,11.91615045]
[1746392176461,1.32650295,1839.4,1839.3,11.91615045]
[1746392177292,1.32671696,1839.4,1839.3,11.91615045]
[1746392181503,1.32671696,1839.4,1839.3,6.47929948]
[1746392186004,1.32671696,1839.4,1839.3,11.91615045]
[1746392189403,1.32661984,1839.4,1839.3,11.91615045]
[1746392190517,1.32708165,1839.4,1839.3,11.91615045]
[1746392190704,1.32708291,1839.4,1839.3,11.91615045]
[1746392208448,1.32708291,1839.4,1839.3,6.47929948]
[1746392208740,1.32708291,1839.4,1839.3,11.91615045]